bitfinex-derivatives/quotes_ETHF0:USTF0_20250903
["timestamp","ask_amount","ask_price","bid_price","bid_amount"]
[1756936100656,1.42569506,4450.4,4450.3,1.27143854]
[1756936105257,1.42569506,4450.4,4450.3,1.03843854]
[1756936105464,1.42569506,4450.4,4450.3,0.40163854]
[1756936105863,1.42569506,4450.4,4450.3,0.64103854]
[1756936106261,1.42569506,4450.4,4450.3,1.01943854]
[1756936108263,1.42569506,4450.4,4450.3,0.71943854]
[1756936109865,1.42569506,4450.4,4450.3,2.2158272]
[1756936112071,0.93269506,4450.4,4450.3,2.2158272]
[1756936112260,0.6014,4450.4,4450.3,2.2158272]
[1756936112460,0.362,4450.9,4450.3,1.8374272]
[1756936112663,0.6122,4450.5,4450.4,0.8644]
[1756936112864,1.44720641,4450.5,4450.4,1.0964]
[1756936120563,1.44720641,4450.5,4450.4,0.8498]
[1756936120766,1.59450641,4450.5,4450.4,0.8498]
[1756936120961,1.59450641,4450.5,4450.4,1.0964]
[1756936121167,1.44720641,4450.5,4450.4,1.0964]
[1756936122075,1.44720641,4450.5,4450.4,4.3042]
[1756936127181,1.58960641,4450.5,4450.4,4.3042]
[1756936127574,1.58960641,4450.5,4450.4,3.9258]
[1756936127778,1.58960641,4450.5,4450.4,4.2844]
[1756936128882,1.44720641,4450.5,4450.4,4.2834]
[1756936129083,1.58960641,4450.5,4450.4,3.2078]
[1756936129278,1.58960641,4450.5,4450.4,3.4388]
[1756936129478,1.81430641,4450.5,4450.4,3.4388]
[1756936129678,1.58960641,4450.5,4450.4,3.4388]
[1756936132385,1.58960641,4450.5,4450.4,4.2638]
[1756936134388,1.44720641,4450.5,4450.4,4.2638]
[1756936134778,1.58960641,4450.5,4450.4,4.2638]
[1756936135387,1.58960641,4450.5,4450.4,4.0328]
[1756936135575,1.58960641,4450.5,4450.4,4.2638]
[1756936137086,1.58960641,4450.5,4450.4,1.056]
[1756936139691,1.44720641,4450.5,4450.4,1.056]
[1756936141589,1.58960641,4450.5,4450.4,1.056]
[1756936142885,1.44720641,4450.5,4450.4,1.056]
[1756936143091,1.44720641,4450.5,4450.4,0.825]
[1756936143285,1.44720641,4450.5,4450.4,1.056]
[1756936143485,1.44720641,4450.5,4450.4,2.09710795]
[1756936143680,1.44720641,4450.5,4450.4,1.86610795]
[1756936143888,1.44720641,4450.5,4450.4,2.09710795]
[1756936146791,1.19580641,4450.5,4450.4,2.09710795]
[1756936147491,0.58360641,4450.5,4450.4,2.09710795]
[1756936148395,1.58540641,4450.5,4450.4,2.09710795]
[1756936149392,1.44300641,4450.5,4450.4,1.056]
[1756936149691,1.44300641,4450.5,4450.4,2.09710795]
[1756936150787,0.95900641,4450.5,4450.4,2.09710795]
[1756936150993,0.58360641,4450.5,4450.4,5.30490795]
[1756936151189,0.58360641,4450.5,4450.4,5.07390795]
[1756936151388,0.95900641,4450.5,4450.4,5.30490795]
[1756936152095,1.42690641,4450.5,4450.4,5.30490795]
[1756936152292,1.56730641,4450.5,4450.4,5.30490795]
[1756936154486,1.56489828,4450.5,4450.4,5.30490795]
[1756936155189,1.42449828,4450.5,4450.4,5.30490795]
[1756936158995,0.81939828,4450.5,4450.4,5.30490795]
[1756936159198,0.58119828,4450.5,4450.4,5.30490795]
[1756936167917,0.58119828,4450.5,4450.4,6.68040795]
[1756936169117,0.58119828,4450.5,4450.4,6.44940795]
[1756936169318,0.58119828,4450.5,4450.4,6.68040795]
[1756936170721,0.58119828,4450.5,4450.4,6.75524668]
[1756936174723,0.58125721,4450.7,4450.4,6.39664668]
[1756936175022,0.58125721,4450.6,4450.5,0.6005]
[1756936175222,0.58125721,4450.6,4450.5,1.64160795]
[1756936175424,0.58125721,4450.6,4450.5,2.01190795]
[1756936175823,0.58125721,4450.6,4450.5,2.08674668]
[1756936181220,0.58125721,4450.6,4450.5,2.31774668]
[1756936182926,0.94495721,4450.6,4450.5,2.31774668]
[1756936184420,1.40145721,4450.6,4450.5,2.17014668]
[1756936188530,1.40145721,4450.6,4450.5,1.93914668]
[1756936188829,1.40145721,4450.6,4450.5,2.17014668]
[1756936191735,0.58125721,4450.6,4450.5,2.31484668]
[1756936195336,0.94495721,4450.6,4450.5,2.31484668]
[1756936195932,0.58125721,4450.6,4450.5,3.58064463]
[1756936196135,0.3637,4451.3,4450.5,7.21034463]
[1756936196434,3.2078,4451.4,4451.3,0.819]
[1756936196738,1.17411003,4451.4,4451.3,1.12483873]
[1756936196933,1.17411003,4451.4,4451.3,41.92483873]
[1756936197538,0.58121003,4451.4,4451.3,41.92483873]
[1756936198430,0.58121003,4451.4,4451.3,41.99676154]
[1756936198636,0.58121003,4451.4,4451.3,43.08626154]
[1756936199936,0.3637,4451.7,4451.6,0.819]
[1756936200234,0.94454648,4451.7,4451.6,2.09110795]
[1756936200432,1.17374648,4451.7,4451.6,2.23786949]
[1756936201030,0.58084648,4451.7,4451.6,7.23776949]
[1756936201237,0.58084648,4452.0,4451.6,6.88146949]
[1756936201435,0.58084648,4452.0,4451.9,1.50380795]
[1756936201638,0.58084648,4452.0,4451.9,2.09110795]
[1756936201834,0.58084648,4452.0,4451.9,1.73480795]
[1756936202041,0.94454648,4452.0,4451.9,2.09110795]
[1756936202332,0.58084648,4452.0,4451.9,2.09110795]
[1756936202540,0.58084648,4452.0,4451.9,2.23786949]
[1756936203540,0.58084648,4452.0,4451.9,2.44521348]
[1756936204139,0.58015257,4452.0,4451.9,2.08891348]
[1756936204342,0.58015257,4452.0,4451.9,2.44521348]
[1756936204536,0.58015257,4452.0,4451.9,2.21421348]
[1756936204732,3.2078,4452.4,4451.9,2.44521348]
[1756936205037,0.58018715,4452.3,4452.2,0.819]
[1756936205337,0.58018715,4452.3,4452.2,1.05]
[1756936205540,0.58018715,4452.3,4452.2,1.19676154]
[1756936205740,1.40038715,4452.3,4452.2,0.38306154]
[1756936205941,1.40038715,4452.3,4452.2,0.37776154]
[1756936206137,3.2078,4452.4,4452.2,0.84046154]
[1756936206333,0.1366,4454.0,4452.8,0.4627]
[1756936206539,0.13383846,4453.3,4453.2,2.06745194]
[1756936206737,0.71375293,4453.3,4453.2,2.06745194]
[1756936206937,0.57991447,4453.3,4453.2,2.06745194]
[1756936207138,3.4388,4454.1,4453.2,1.71115194]
[1756936207341,0.80396248,4454.0,4453.5,0.381]
[1756936207532,0.57943248,4453.9,4453.6,0.3563]
[1756936207731,0.22453,4453.8,4453.7,0.3563]
[1756936207943,0.80396248,4453.8,4453.7,0.3563]
[1756936208137,0.57943248,4453.8,4453.7,0.5926]
[1756936208338,0.57943248,4453.8,4453.7,0.2363]
[1756936208847,0.57943248,4453.8,4453.7,0.819]
[1756936209535,0.57943248,4453.8,4453.7,1.05]
[1756936209738,3.2078,4454.1,4454.0,0.1447]
[1756936209938,3.78664563,4454.1,4454.0,0.9637]
[1756936210146,3.2078,4454.1,4454.0,0.9637]
[1756936210338,3.2078,4454.1,4454.0,2.44315194]
[1756936212748,3.2078,4454.1,4454.0,5.81655194]
[1756936213944,3.2078,4454.1,4454.0,4.3371]
[1756936214137,3.2078,4454.1,4454.0,5.81655194]
[1756936214542,3.2078,4454.6,4454.1,0.221]
[1756936214742,3.2078,4454.6,4454.3,0.356]
[1756936214942,3.2078,4454.6,4454.3,0.577]
[1756936215145,3.2078,4454.6,4454.5,0.4885]
[1756936215544,3.2078,4454.6,4454.5,0.7095]
[1756936216444,0.231,4454.7,4454.6,0.356]
[1756936216748,0.231,4454.9,4454.6,0.356]
[1756936217342,0.231,4454.9,4454.5,0.1325]
[1756936217542,0.231,4454.9,4454.6,0.356]
[1756936217747,0.231,4454.9,4454.5,0.1325]
[1756936218344,0.231,4454.9,4454.6,0.356]
[1756936218545,0.231,4454.9,4454.5,0.1325]
[1756936219658,0.231,4454.9,4454.6,0.356]
[1756936219847,0.231,4454.9,4454.5,0.1325]
[1756936220149,0.231,4454.9,4454.6,0.356]
[1756936220351,0.231,4454.9,4454.6,0.221]
[1756936220545,0.231,4454.9,4454.7,0.221]
[1756936220747,0.231,4454.9,4454.8,0.356]
[1756936221248,0.8078582,4454.9,4454.8,0.356]
[1756936221653,0.231,4454.9,4454.8,0.356]
[1756936222346,0.231,4454.9,4454.8,0.577]
[1756936223048,0.80813687,4454.9,4454.8,0.577]
[1756936225354,0.80813687,4454.9,4454.8,0.8093]
[1756936229258,0.80813687,4454.9,4454.8,0.356]
[1756936230755,0.80813687,4454.9,4454.8,0.577]
[1756936231144,0.80813687,4454.9,4454.8,0.8093]
[1756936232151,0.80813687,4454.9,4454.8,0.577]
[1756936233357,0.80813687,4454.9,4454.8,0.8093]
[1756936237961,0.80813687,4454.9,4454.8,5.8092]
[1756936240256,0.57713687,4454.9,4454.8,9.017]
[1756936242167,0.57713687,4454.9,4454.8,13.017]
[1756936242362,3.2078,4455.6,4455.5,0.9036]
[1756936242562,3.2078,4455.6,4455.5,2.15205194]
[1756936243960,3.2078,4455.6,4455.5,7.15195194]
[1756936244760,1.19489662,4456.0,4455.9,0.4363]
[1756936244956,1.19489662,4456.0,4455.9,2.01765194]
[1756936245155,1.42489662,4456.1,4455.9,2.01765194]
[1756936245356,1.42489662,4456.1,4456.0,0.6809]
[1756936245665,4.40269662,4456.3,4456.0,0.5707]
[1756936245865,3.2078,4456.3,4456.2,0.7692]
[1756936246672,3.2078,4456.3,4456.2,5.9991]
[1756936248060,2.00956362,4458.1,4456.7,0.4363]
[1756936248061,3.2078,4456.8,4456.7,0.4363]
[1756936248258,3.2078,4456.8,4456.7,2.01765194]
[1756936248965,3.2078,4456.8,4456.7,7.01755194]
[1756936251966,3.2078,4456.8,4456.7,7.24755194]
[1756936254468,3.78303384,4456.8,4456.7,7.24755194]
[1756936256469,3.2078,4457.4,4457.0,0.1344]
[1756936256675,3.4378,4457.4,4457.3,0.7692]
[1756936256972,4.01293291,4457.4,4457.3,0.7692]
[1756936257475,3.78293291,4457.4,4457.3,0.7692]
[1756936259775,3.78293291,4457.4,4457.3,0.5465]
[1756936260073,3.78293291,4457.4,4457.3,0.5629]
[1756936260574,3.78293291,4457.4,4457.3,5.5464]
[1756936260762,3.78293291,4457.4,4457.3,5.3328]
[1756936260963,4.01293291,4457.4,4457.3,5.3328]
[1756936261165,4.01293291,4457.4,4457.3,4.9999]
[1756936262473,4.01293291,4457.4,4457.3,5.3328]
[1756936262871,4.01293291,4457.4,4457.3,5.5464]
[1756936263069,4.01293291,4457.4,4457.3,0.7692]
[1756936263577,4.01293291,4457.4,4457.3,1.80721858]
[1756936263770,3.78293291,4457.4,4457.3,1.80721858]
[1756936264774,3.78293291,4457.4,4457.3,2.03721858]
[1756936265270,0.23,4457.7,4457.5,0.1344]
[1756936265471,0.23,4457.7,4457.6,1.80721858]
[1756936265870,0.80507411,4457.7,4457.6,1.80721858]
[1756936266576,0.57507411,4457.7,4457.6,1.80721858]
[1756936267775,0.57507411,4457.8,4457.6,1.80721858]
[1756936267974,0.57507411,4457.8,4457.7,0.3329]
[1756936268176,0.57507411,4457.8,4457.7,0.7692]
[1756936270172,0.57507411,4457.9,4457.7,0.4363]
[1756936270371,0.57507411,4457.9,4457.8,0.7692]
[1756936273783,0.57507411,4457.9,4457.8,0.5465]
[1756936273985,0.57507411,4457.9,4457.8,0.7842]
[1756936275586,0.57507411,4457.9,4457.8,1.82221858]
[1756936280882,0.57507411,4457.9,4457.8,6.82211858]
[1756936286090,0.57507411,4457.9,4457.8,5.7841]
[1756936286288,0.57507411,4457.9,4457.8,6.82211858]
[1756936289293,0.57507411,4457.9,4457.8,7.05211858]
[1756936295696,0.57507411,4458.2,4457.8,6.71921858]
[1756936295896,1.99997073,4458.3,4458.1,1.50061858]
[1756936296088,0.57507411,4458.2,4458.1,1.50061858]
[1756936296289,0.57507411,4458.2,4458.1,1.84041858]
[1756936300702,1.76997073,4458.2,4458.1,1.84041858]
[1756936304204,0.57507411,4458.2,4458.1,1.84041858]
[1756936310609,0.57507411,4458.2,4458.1,0.8024]
[1756936310812,2.22428073,4458.2,4458.1,0.3398]
[1756936311111,5.02938411,4458.2,4457.8,4.9999]
[1756936311311,0.79939411,4458.1,4457.8,4.9999]
[1756936311510,0.80507411,4458.0,4457.9,0.3338]
[1756936311711,1.02939411,4458.0,4457.9,0.3338]
[1756936312605,0.80507411,4458.0,4457.9,0.3338]
[1756936314705,0.80507411,4458.0,4457.5,0.1344]
[1756936314901,3.2078,4457.6,4457.5,0.7042]
[1756936315109,4.01187411,4457.6,4457.5,0.7042]
[1756936315309,9.21663182,4457.6,4457.4,4.9999]
[1756936315610,0.79941411,4457.5,4457.4,4.9999]
[1756936315915,0.57507411,4457.5,4457.4,4.9999]
[1756936316409,1.77901973,4457.5,4457.4,5.3337]
[1756936317812,0.57507411,4457.5,4457.4,5.5697]
[1756936318618,0.75832172,4457.5,4457.4,5.5697]
[1756936320616,0.7582799,4457.5,4457.4,5.5697]
[1756936323223,0.75831438,4457.5,4457.4,5.7968]
[1756936336322,1.96226,4457.5,4457.4,5.7968]
[1756936338436,0.75831438,4457.5,4457.4,5.7968]
[1756936347641,0.75892575,4457.5,4457.4,5.7968]
[1756936387892,0.75892575,4457.5,4457.4,0.7969]
[1756936408707,0.57507411,4457.5,4457.4,0.7969]
[1756936435820,0.229,4457.6,4457.4,0.7969]
[1756936435821,3.4368,4457.6,4457.4,0.7969]
[1756936436026,3.4368,4457.6,4457.5,0.8778]
[1756936436224,4.01073213,4457.6,4457.5,0.8778]
[1756936457940,0.80293213,4457.6,4457.5,0.8778]
[1756936458240,4.01037191,4457.6,4457.5,0.8778]
[1756936468151,0.57357191,4457.6,4457.5,5.10213999]
[1756936468352,3.2078,4458.7,4458.5,0.1284]
[1756936468551,3.2078,4458.7,4458.6,0.7149]
[1756936468845,3.4358,4458.7,4458.6,0.7149]
[1756936469050,0.228,4458.7,4458.6,0.7149]
[1756936469950,0.228,4458.8,4458.7,0.7149]
[1756936472952,0.228,4459.0,4458.8,0.3081]
[1756936473152,0.228,4459.0,4458.8,0.7149]
[1756936474654,0.228,4459.3,4458.8,0.7149]
[1756936476359,4.4140066,4459.8,4458.8,0.7149]
[1756936476658,0.228,4459.5,4458.8,0.7149]
[1756936482058,3.2078,4459.8,4459.5,0.1249]
[1756936482259,0.0976,4460.1,4460.0,0.5527]
[1756936482458,0.0976,4460.1,4460.0,0.8697]
[1756936482763,0.7634336,4460.1,4460.0,0.8697]
[1756936483461,0.7634336,4460.1,4460.0,5.8696]
[1756936484564,0.6658336,4460.1,4460.0,5.8696]
[1756936485464,1.2062066,4461.0,4460.0,5.8696]
[1756936485465,3.2078,4462.8,4461.0,2.244]
[1756936485760,3.2078,4462.8,4460.0,11.14558605]
[1756936485761,0.3452,4463.0,4462.7,4.45348605]
[1756936485960,0.3313,4462.9,4462.8,40.8]
[1756936486165,0.124,4463.0,4462.8,45.25348605]
[1756936486473,0.124,4464.0,4463.1,0.40315]
[1756936486663,0.3313,4464.0,4463.9,4.45348605]
[1756936486868,0.3313,4464.4,4463.9,4.45348605]
[1756936487162,0.5792,4464.5,4463.9,4.45348605]
[1756936487163,0.3313,4464.1,4463.9,3.2078]
[1756936487570,0.5792,4464.5,4463.9,3.2078]
[1756936487760,1.1203,4464.5,4464.4,3.2078]
[1756936488160,4.3281,4464.5,4464.4,4.45348605]
[1756936490674,4.0941,4464.5,4464.4,4.45348605]
[1756936490869,4.3281,4464.5,4464.4,4.45348605]
[1756936492273,4.3281,4464.5,4464.4,9.45338605]
[1756936494969,4.1183,4464.5,4464.4,9.45338605]
[1756936495370,3.8843,4464.5,4464.4,9.45338605]
[1756936495571,4.1183,4464.5,4464.4,9.45338605]
[1756936496373,3.8843,4464.5,4464.4,9.45338605]
[1756936496574,4.1183,4464.5,4464.4,9.45338605]
[1756936496884,3.8843,4464.5,4464.4,9.45338605]
[1756936497270,3.8961,4464.5,4464.4,9.45338605]
[1756936497782,4.1173,4464.5,4464.4,9.45338605]
[1756936499197,0.9095,4464.5,4464.4,9.45338605]
[1756936499984,0.6765,4464.5,4464.4,9.45338605]
[1756936500177,0.9095,4464.5,4464.4,9.45338605]
[1756936500475,1.1193,4464.5,4464.4,9.45338605]
[1756936502679,4.3271,4464.5,4464.4,9.45338605]
[1756936502882,4.1173,4464.5,4464.4,9.45338605]
[1756936503683,3.8843,4464.5,4464.4,9.45338605]
[1756936503883,4.1173,4464.5,4464.4,9.45338605]
[1756936504787,4.3271,4464.5,4464.4,9.45338605]
[1756936505976,4.0941,4464.5,4464.4,8.2077]
[1756936506177,0.7623,4463.4,4463.3,3.2078]
[1756936506379,0.9953,4463.4,4463.3,1.24568605]
[1756936506877,0.9953,4463.4,4463.3,1.59587276]
[1756936507278,0.7623,4463.4,4463.3,1.59587276]
[1756936507583,0.9953,4463.4,4463.3,1.59587276]
[1756936509174,0.9953,4463.4,4463.3,1.80599348]
[1756936509389,0.9953,4463.4,4463.3,1.79106847]
[1756936509586,0.9953,4463.4,4463.3,1.24529691]
[1756936510087,0.9953,4463.4,4463.3,1.58088453]
[1756936510279,0.9953,4463.4,4463.3,1.24529932]
[1756936511086,0.9953,4463.4,4463.3,1.5738939]
[1756936511087,0.3313,4463.4,4463.3,1.5738939]
[1756936511479,0.3313,4463.4,4463.3,2.2816939]
[1756936512186,0.3313,4463.4,4463.3,2.2810939]
[1756936512381,0.3313,4463.4,4463.3,0.21012313]
[1756936512382,0.9339,4463.4,4463.3,0.21012313]
[1756936512581,4.9339,4463.4,4463.3,0.21012313]
[1756936512986,4.9339,4463.4,4463.3,1.24529932]
[1756936513187,5.1669,4463.4,4463.3,1.24529932]
[1756936514589,8.3747,4463.4,4463.3,1.24529932]
[1756936515087,0.9339,4463.4,4463.3,1.24529932]
[1756936515285,4.3747,4463.4,4463.3,1.55700818]
[1756936519487,4.1417,4463.4,4463.3,1.55700818]
[1756936519683,4.3747,4463.4,4463.3,1.55700818]
[1756936520091,4.1417,4463.4,4463.3,1.55700818]
[1756936520390,4.3747,4463.4,4463.3,1.03517619]
[1756936520590,1.1669,4463.4,4463.3,1.03517619]
[1756936521180,4.3747,4463.4,4463.3,1.03517619]
[1756936527892,4.3737,4463.4,4463.3,1.03517619]
[1756936528995,4.56969177,4463.4,4463.3,1.03517619]
[1756936532697,4.56995656,4463.4,4463.3,1.03517619]
[1756936533503,1.2202,4463.0,4462.8,1.03517619]
[1756936533704,1.46385656,4462.9,4462.8,1.03517619]
[1756936533905,1.46385656,4462.9,4462.8,1.34687619]
[1756936535798,1.46385656,4462.9,4462.8,1.03517619]
[1756936536096,1.46385656,4462.9,4462.8,2.23410172]
[1756936536902,1.46385656,4462.9,4462.8,1.19892553]
[1756936537095,1.46385656,4462.9,4462.8,2.54580172]
[1756936537804,1.46385656,4462.9,4462.8,1.19892553]
[1756936537999,1.46385656,4462.9,4462.8,2.23410172]
[1756936538908,1.46385656,4462.9,4462.8,2.54580172]
[1756936539709,1.46385656,4462.9,4462.8,2.23410172]
[1756936541200,1.46385656,4462.9,4462.8,1.03517619]
[1756936542110,1.23185656,4462.9,4462.8,1.03517619]
[1756936542317,1.46285656,4462.9,4462.8,1.03517619]
[1756936542514,1.46285656,4462.9,4462.8,1.34687619]
[1756936544416,1.46285656,4462.9,4462.8,2.55641183]
[1756936550319,1.23185656,4462.9,4462.8,2.55641183]
[1756936550507,1.46285656,4462.9,4462.8,2.55641183]
[1756936550707,1.23185656,4462.9,4462.8,2.55641183]
[1756936550915,1.46285656,4462.9,4462.8,2.85121183]
[1756936551519,1.23185656,4462.9,4462.8,1.64167619]
[1756936551821,1.46285656,4462.9,4462.8,1.64167619]
[1756936555916,1.44836109,4462.9,4462.8,1.64167619]
[1756936556619,1.44736109,4462.9,4462.8,1.64167619]
[1756936558322,1.44736109,4462.9,4462.8,0.6065]
[1756936558623,1.44736109,4462.9,4462.8,1.64167619]
[1756936563425,1.94798351,4462.9,4462.8,1.64167619]
[1756936564831,1.71798351,4462.9,4462.8,1.64167619]
[1756936565018,1.94798351,4462.9,4462.8,1.64167619]
[1756936567525,1.71798351,4462.9,4462.8,1.64167619]
[1756936567727,1.94798351,4462.9,4462.8,1.64167619]
[1756936568532,1.71798351,4462.9,4462.8,1.64167619]
[1756936568730,1.94798351,4462.9,4462.8,1.64167619]
[1756936568931,1.71798351,4462.9,4462.8,1.64167619]
[1756936569231,1.94798351,4462.9,4462.8,1.64167619]
[1756936571435,1.94798351,4462.9,4462.8,0.6065]
[1756936575829,1.71798351,4462.9,4462.8,0.6065]
[1756936576035,1.94698351,4462.9,4462.8,0.6065]
[1756936578436,1.71798351,4462.9,4462.8,0.6065]
[1756936578628,1.94698351,4462.9,4462.8,0.6065]
[1756936584236,1.94698351,4462.9,4462.8,0.3117]
[1756936585739,1.71798351,4462.9,4462.8,0.3117]
[1756936586038,1.94698351,4462.9,4462.8,0.3117]
[1756936589035,1.76522242,4462.9,4462.8,0.3117]
[1756936589433,1.53622242,4462.9,4462.8,0.3117]
[1756936589733,1.76522242,4462.9,4462.8,0.3117]
[1756936590940,0.93362242,4462.9,4462.8,2.32098073]
[1756936591146,0.662,4462.9,4462.8,2.32098073]
[1756936591842,0.662,4462.9,4462.8,2.09691073]
[1756936592041,0.4181,4463.4,4462.9,0.2486]
[1756936592238,1.45776428,4463.3,4463.2,0.5803]
[1756936592443,1.45776428,4463.3,4463.2,2.07141073]
[1756936592644,1.45776428,4463.3,4463.2,2.29546073]
[1756936592835,1.15916428,4463.3,4463.2,2.29546073]
[1756936593034,0.4181,4463.4,4463.3,0.5348]
[1756936593233,0.4181,4463.4,4463.3,1.05295]
[1756936593441,0.6471,4463.4,4463.3,0.8289]
[1756936594241,0.229,4463.4,4463.3,5.05295]
[1756936594844,32.278,4463.9,4463.3,9.5802]
[1756936595041,0.7167,4463.8,4463.7,0.5803]
[1756936595239,0.9457,4463.8,4463.7,0.8289]
[1756936595437,0.7167,4463.8,4463.7,0.8289]
[1756936595637,0.9457,4463.8,4463.7,0.8289]
[1756936596440,0.7167,4463.8,4463.7,0.8289]
[1756936596745,0.9457,4463.8,4463.7,0.8289]
[1756936599042,0.7167,4463.8,4463.7,0.8289]
[1756936599249,0.9457,4463.8,4463.7,0.8289]
[1756936599438,0.9457,4463.8,4463.7,5.8288]
[1756936600146,0.6471,4463.8,4463.7,5.8288]
[1756936600346,0.9457,4463.8,4463.7,5.8288]
[1756936601439,0.7167,4463.8,4463.7,5.8288]
[1756936602252,0.4181,4463.8,4463.7,5.8288]
[1756936611157,0.4193,4463.9,4463.8,0.2327]
[1756936611354,0.4193,4463.9,4463.8,0.83]
[1756936612453,0.4193,4464.3,4463.8,0.5973]
[1756936612659,0.934,4464.4,4464.3,1.83981073]
[1756936612854,0.705,4464.4,4464.3,1.83981073]
[1756936613055,1.0051,4464.4,4464.3,1.83981073]
[1756936615656,1.0051,4464.4,4464.3,6.83971073]
[1756936619065,1.0051,4464.4,4464.3,7.07241073]
[1756936619965,0.705,4464.4,4464.3,7.07241073]
[1756936622366,0.4193,4464.4,4464.3,7.07241073]
[1756936626470,0.228,4464.8,4464.7,0.5973]
[1756936626666,0.933,4464.8,4464.7,2.07251073]
[1756936626872,0.1813,4464.5,4464.3,4.9999]
[1756936627073,0.1813,4464.5,4464.4,1.24251073]
[1756936627563,1.1864,4464.5,4464.4,1.24251073]
[1756936627764,1.1864,4464.5,4464.4,1.53721073]
[1756936629274,1.1864,4464.5,4464.4,1.83981073]
[1756936631476,1.1864,4464.5,4464.4,1.63182824]
[1756936635678,0.4794,4465.0,4464.9,0.5562]
[1756936635874,0.4794,4465.0,4464.9,5.24362824]
[1756936636175,0.1826,4465.0,4464.9,5.24362824]
[1756936636378,0.62,4465.0,4464.9,5.24362824]
[1756936637174,0.4374,4465.4,4465.3,0.5562]
[1756936637379,0.4374,4465.4,4465.3,0.7733]
[1756936637577,0.4374,4465.4,4465.3,1.80782824]
[1756936639079,1.0191,4465.9,4465.8,0.5562]
[1756936639280,1.0191,4465.9,4465.8,1.80782824]
[1756936642274,1.0191,4465.9,4465.8,6.80772824]
[1756936643780,0.7342,4465.9,4465.8,6.80772824]
[1756936644788,0.4374,4465.9,4465.8,6.80772824]
[1756936651105,1.133,4466.5,4466.4,0.5562]
[1756936651296,1.133,4466.5,4466.4,1.80782824]
[1756936651897,1.133,4466.5,4466.4,6.80772824]
[1756936652099,1.133,4466.5,4466.4,10.01552824]
[1756936655202,0.4374,4466.9,4466.4,9.24222824]
[1756936655406,0.7342,4466.9,4466.8,1.80782824]
[1756936657405,1.0191,4466.9,4466.8,1.03452824]
[1756936657905,1.1899,4466.5,4466.4,8.4809]
[1756936658108,1.1899,4466.5,4466.4,10.02642824]
[1756936658607,1.1899,4466.5,4466.4,10.24352824]
[1756936658808,0.905,4466.5,4466.4,10.01552824]
[1756936659010,0.905,4466.5,4466.4,10.02642824]
[1756936661610,1.1899,4466.5,4466.4,10.02642824]
[1756936662614,1.1899,4466.5,4466.4,10.22812824]
[1756936662805,1.1899,4466.5,4466.4,10.00012824]
[1756936663004,1.1899,4466.5,4466.4,10.22812824]
[1756936663912,1.1899,4466.5,4466.4,10.02642824]
[1756936664704,1.1899,4466.5,4466.4,10.22812824]
[1756936665006,1.1899,4466.5,4466.4,10.02642824]
[1756936665205,1.1899,4466.5,4466.4,10.22812824]
[1756936666013,0.905,4466.5,4466.4,10.22812824]
[1756936668416,0.6082,4466.5,4466.4,10.22812824]
[1756936668618,0.892,4466.5,4466.4,10.02642824]
[1756936670318,0.892,4466.5,4466.4,10.22812824]
[1756936671615,0.892,4466.5,4466.4,10.00012824]
[1756936671815,0.892,4466.5,4466.4,10.22812824]
[1756936672312,0.892,4466.5,4466.4,10.02642824]
[1756936673320,0.892,4466.5,4466.4,10.22812824]
[1756936673520,1.1824,4466.5,4466.4,10.02642824]
[1756936675319,1.1824,4466.5,4466.4,10.22812824]
[1756936675918,1.1824,4466.5,4466.4,10.02642824]
[1756936677420,1.1824,4466.5,4466.4,10.22812824]
[1756936678120,0.892,4466.5,4466.4,10.22812824]
[1756936678622,0.892,4466.5,4466.4,10.00012824]
[1756936678823,0.892,4466.5,4466.4,10.22812824]
[1756936679023,0.892,4466.5,4466.4,10.02642824]
[1756936680122,5.92022864,4466.5,4466.4,4.9999]
[1756936681523,5.48282864,4466.5,4465.8,4.24232824]
[1756936681725,0.9762,4465.9,4465.8,4.24232824]
[1756936682022,1.49013864,4465.9,4465.8,4.24232824]
[1756936682221,1.49013864,4465.9,4465.8,9.24222824]
[1756936682420,0.9762,4465.9,4465.8,9.52242824]
[1756936683525,0.9762,4465.9,4465.8,9.80942824]
[1756936684429,0.9762,4465.9,4465.8,10.01112824]
[1756936684920,0.9762,4465.9,4465.8,9.80942824]
[1756936686829,0.402,4465.9,4465.8,10.01112824]
[1756936693535,0.402,4465.9,4465.8,10.2172631]
[1756936706243,0.92494195,4465.9,4465.8,10.2172631]
[1756936708250,1.21294195,4465.9,4465.8,10.2172631]
[1756936708442,0.92494195,4465.9,4465.8,10.0155631]
[1756936708647,1.18704936,4466.8,4465.8,10.0155631]
[1756936708648,0.4109,4466.9,4465.8,10.46748309]
[1756936708848,1.41504936,4467.3,4466.7,0.7433]
[1756936708849,0.52329797,4466.8,4466.7,0.7433]
[1756936709249,0.93419797,4466.8,4466.7,0.7433]
[1756936709648,0.93419797,4466.8,4466.7,5.7432]
[1756936709844,0.93995421,4466.8,4466.7,5.7432]
[1756936715958,0.52905421,4466.8,4466.7,5.7432]
[1756936716256,0.4109,4467.1,4466.7,5.7432]
[1756936716459,0.93929966,4466.9,4466.8,0.7433]
[1756936717256,0.4109,4466.9,4466.8,0.7433]
[1756936717460,3.4358,4467.4,4466.9,0.1865]
[1756936717661,1.22721954,4467.3,4467.2,0.5568]
[1756936718361,1.22721954,4467.3,4467.2,0.7433]
[1756936720162,1.22721954,4467.3,4467.2,0.5568]
[1756936721258,1.45521954,4467.3,4467.2,0.5568]
[1756936723064,1.45521954,4467.3,4467.2,0.7285]
[1756936723562,1.45521954,4467.3,4467.2,0.5568]
[1756936725265,1.22800319,4467.3,4467.2,0.5568]
[1756936725464,1.45600319,4467.3,4467.2,0.5568]
[1756936726563,1.71890319,4467.3,4467.2,0.5568]
[1756936731068,1.22800319,4467.3,4467.2,0.5568]
[1756936731269,1.45600319,4467.3,4467.2,0.7285]
[1756936731463,0.9269,4467.3,4467.2,0.7285]
[1756936731769,0.6989,4467.3,4467.2,0.7285]
[1756936732774,0.4109,4467.3,4467.2,0.7285]
[1756936733176,0.681,4467.3,4467.2,0.7285]
[1756936733669,0.681,4467.3,4467.2,0.5568]
[1756936735872,0.681,4467.3,4467.2,5.5567]
[1756936736075,0.681,4467.3,4467.2,5.7284]
[1756936736477,0.681,4467.3,4467.2,5.5567]